{"text_format":"1","workbook":"xlsx","n_sheets":7,"sheets":["Instructions","Paste Copy","Arch DCA Proposal","Reimbursable","Consultants","Roll Up","info Grid"],"not_rendered":{"charts":0,"images":0,"macros":1,"external_links":0,"defined_names":0,"comments":1,"pivot_tables":0},"unopened":[],"bounds":{"document_bytes":16777216,"sheet_cells":100000,"rows_first":2000,"rows_last":500,"rows_between":2000,"halvings":0,"cell_chars":16384,"cell_head_chars":4096},"cells_cut":0,"cells_raw":0,"read":"whole","date_system":"1900"}

{"sheet":"Instructions","index":0,"n_rows":26,"n_cols":2,"rows_kept":26,"cut":false,"hidden":false,"merged":[]}
["Instructions"]
[null,"All light blue fields are unlocked for vendor input"]
[1,"Go to Consultants tab and list all scopes of work and the consultants performing the scope of work"]
[2,"For each scope of work item, enter the proposed costs using the appropriate basic or reimbursable column"]
[3,"Got to the Reimbursable tab and list all reimbursable scope of work items and related proposed costs."]
[4,"Go to the Arch DCA Propsal tab and complet the Architect firm, DCA number and description lines."]
[5,"Enter the firms Labor Multiplier from the contract."]
[6,"Enter the proposed hourly rate for each role including adding additional roles as necessary"]
[7,"Review the Elements of Work nd add any additional lines."]
[8,"enter the the proposed labor hours for each role for each Element of work."]
[13,"Once you have entered all the costs, click the Run Paste Copy button on the Arch DCA Proposal tab.  This prepares the data in the 'Paste Copy' tab for the cut/paste to PM Web performed in step 18."]
[14,"In PM Web, select Online Change Request under Change Management."]
[15,"Click on the +Add button"]
[16,"Complete the Company, Project, Commitment, Description, and Record # fields"]
[17,"In the Justification field, provide a sufficiently detailed justification."]
[18,"Under the Category field, select 'Design Change Authorization' from the drop down menu."]
[19,"Return to this spreadsheet and go to the 'Paste Copy' tab.  Select and copy cells A2 to V33."]
[20,"In PM Web, click the Paste From Excel button."]
[21,"Click OK for the 'Use Ctrl+V to paste your data' pop up."]
[22,"Hold down the Ctrl button on your key board and press V to paste the data in PM Web."]
[23,"Click the save icon at the top."]
[24,"Verify the data in the 'Change Request Recap' section."]
[25,"Attach a copy of this spreadsheet and other appropriate back up under the 'Attachments' tab."]
[26,"Click the Submit button"]
[]
[null,"Make sure you attach a copy of this Request form to the record. "]

{"sheet":"Paste Copy","index":1,"n_rows":7,"n_cols":100,"rows_kept":7,"cut":false,"hidden":false,"merged":[]}
["Line #","Attachments","Item","Description","Currency","Ext. Cost","Commitment Line","Cost Code","Cost Type","Days","Phase","WBS","Period","Assigned To","Manufacturer","Mfr. #","CE ID","CCO ID","Notes","Type of Markup","Markup","Capital Work Complete",null,null,null,null,null,null,null,null,null,null,null,null,null,null,null,null,null,null,null,null,null,null,null,null,null,null,null,null,null,null,null,null,null,null,null,null,null,null,null,null,null,null,null,null,null,null,null,null,null,null,null,null,null,null,null,null,"Line #","Attachments","Item","Description","Currency","Ext. Cost","Commitment Line","Cost Code","Cost Type","Days","Phase","WBS","Period","Assigned To","Manufacturer","Mfr. #","CE ID","CCO ID","Notes","Type of Markup","Markup","Capital Work Complete"]
["","",null,"","","",null,"",null,"",null,null,null,null,null,null,null,null,null,null,"","",null,null,null,null,null,null,null,null,null,null,null,null,null,null,null,null,null,null,null,null,null,null,null,null,null,null,null,null,null,null,null,null,null,null,null,null,null,null,null,null,null,null,null,null,null,null,null,null,null,null,null,null,null,null,null,null,{"$f":"IF(CF2<>\"\",1,\"\")","v":""},{"$f":"IFERROR(INDEX('info Grid'!E$2:E$33,SMALL(IF('info Grid'!$A$2:$A$33<>0,ROW('info Grid'!A$2:A$33)-ROW('info Grid'!A$2)+1),ROWS('info Grid'!A$2:A2))),\"\")","v":""},null,{"$f":"IFERROR(INDEX('info Grid'!C$2:C$33,SMALL(IF('info Grid'!$A$2:$A$33<>0,ROW('info Grid'!A$2:A$33)-ROW('info Grid'!A$2)+1),ROWS('info Grid'!A$2:A2))),\"\")","v":""},{"$f":"IFERROR(INDEX('info Grid'!D$2:D$33,SMALL(IF('info Grid'!$A$2:$A$33<>0,ROW('info Grid'!A$2:A$33)-ROW('info Grid'!A$2)+1),ROWS('info Grid'!A$2:A2))),\"\")","v":""},{"$f":"IFERROR(INDEX('info Grid'!A$2:A$33,SMALL(IF('info Grid'!$A$2:$A$33<>0,ROW('info Grid'!A$2:A$33)-ROW('info Grid'!A$2)+1),ROWS('info Grid'!A$2:A2))),\"\")","v":""},null,{"$f":"IFERROR(INDEX('info Grid'!B$2:B$33,SMALL(IF('info Grid'!$A$2:$A$33<>0,ROW('info Grid'!A$2:A$33)-ROW('info Grid'!A$2)+1),ROWS('info Grid'!A$2:A2))),\"\")","v":""},null,{"$f":"IFERROR(INDEX('info Grid'!$I$2:$I$33,SMALL(IF('info Grid'!$A$2:$A$33<>0,ROW('info Grid'!A$2:A$33)-ROW('info Grid'!A$2)+1),ROWS('info Grid'!A$2:A2))),\"\")","v":""},null,null,null,null,null,null,null,null,null,null,{"$f":"IFERROR(INDEX('info Grid'!F$2:F$33,SMALL(IF('info Grid'!$A$2:$A$33<>0,ROW('info Grid'!A$2:A$33)-ROW('info Grid'!A$2)+1),ROWS('info Grid'!A$2:A2))),\"\")","v":""},{"$f":"IFERROR(INDEX('info Grid'!G$2:G$33,SMALL(IF('info Grid'!$A$2:$A$33<>0,ROW('info Grid'!A$2:A$33)-ROW('info Grid'!A$2)+1),ROWS('info Grid'!A$2:A2))),\"\")","v":""}]
["","",null,"","","",null,"",null,"",null,null,null,null,null,null,null,null,null,null,"","",null,null,null,null,null,null,null,null,null,null,null,null,null,null,null,null,null,null,null,null,null,null,null,null,null,null,null,null,null,null,null,null,null,null,null,null,null,null,null,null,null,null,null,null,null,null,null,null,null,null,null,null,null,null,null,null,{"$f":"IF(CF3<>\"\",2,\"\")","v":""},{"$f":"IFERROR(INDEX('info Grid'!E$2:E$33,SMALL(IF('info Grid'!$A$2:$A$33<>0,ROW('info Grid'!A$2:A$33)-ROW('info Grid'!A$2)+1),ROWS('info Grid'!A$2:A3))),\"\")","v":""},null,{"$f":"IFERROR(INDEX('info Grid'!C$2:C$33,SMALL(IF('info Grid'!$A$2:$A$33<>0,ROW('info Grid'!A$2:A$33)-ROW('info Grid'!A$2)+1),ROWS('info Grid'!A$2:A3))),\"\")","v":""},{"$f":"IFERROR(INDEX('info Grid'!D$2:D$33,SMALL(IF('info Grid'!$A$2:$A$33<>0,ROW('info Grid'!A$2:A$33)-ROW('info Grid'!A$2)+1),ROWS('info Grid'!A$2:A3))),\"\")","v":""},{"$f":"IFERROR(INDEX('info Grid'!A$2:A$33,SMALL(IF('info Grid'!$A$2:$A$33<>0,ROW('info Grid'!A$2:A$33)-ROW('info Grid'!A$2)+1),ROWS('info Grid'!A$2:A3))),\"\")","v":""},null,{"$f":"IFERROR(INDEX('info Grid'!B$2:B$33,SMALL(IF('info Grid'!$A$2:$A$33<>0,ROW('info Grid'!A$2:A$33)-ROW('info Grid'!A$2)+1),ROWS('info Grid'!A$2:A3))),\"\")","v":""},null,{"$f":"IFERROR(INDEX('info Grid'!$I$2:$I$33,SMALL(IF('info Grid'!$A$2:$A$33<>0,ROW('info Grid'!A$2:A$33)-ROW('info Grid'!A$2)+1),ROWS('info Grid'!A$2:A3))),\"\")","v":""},null,null,null,null,null,null,null,null,null,null,{"$f":"IFERROR(INDEX('info Grid'!F$2:F$33,SMALL(IF('info Grid'!$A$2:$A$33<>0,ROW('info Grid'!A$2:A$33)-ROW('info Grid'!A$2)+1),ROWS('info Grid'!A$2:A3))),\"\")","v":""},{"$f":"IFERROR(INDEX('info Grid'!G$2:G$33,SMALL(IF('info Grid'!$A$2:$A$33<>0,ROW('info Grid'!A$2:A$33)-ROW('info Grid'!A$2)+1),ROWS('info Grid'!A$2:A3))),\"\")","v":""}]
["","",null,"","","",null,"",null,"",null,null,null,null,null,null,null,null,null,null,"","",null,null,null,null,null,null,null,null,null,null,null,null,null,null,null,null,null,null,null,null,null,null,null,null,null,null,null,null,null,null,null,null,null,null,null,null,null,null,null,null,null,null,null,null,null,null,null,null,null,null,null,null,null,null,null,null,{"$f":"IF(CF4<>\"\",3,\"\")","v":""},{"$f":"IFERROR(INDEX('info Grid'!E$2:E$33,SMALL(IF('info Grid'!$A$2:$A$33<>0,ROW('info Grid'!A$2:A$33)-ROW('info Grid'!A$2)+1),ROWS('info Grid'!A$2:A4))),\"\")","v":""},null,{"$f":"IFERROR(INDEX('info Grid'!C$2:C$33,SMALL(IF('info Grid'!$A$2:$A$33<>0,ROW('info Grid'!A$2:A$33)-ROW('info Grid'!A$2)+1),ROWS('info Grid'!A$2:A4))),\"\")","v":""},{"$f":"IFERROR(INDEX('info Grid'!D$2:D$33,SMALL(IF('info Grid'!$A$2:$A$33<>0,ROW('info Grid'!A$2:A$33)-ROW('info Grid'!A$2)+1),ROWS('info Grid'!A$2:A4))),\"\")","v":""},{"$f":"IFERROR(INDEX('info Grid'!A$2:A$33,SMALL(IF('info Grid'!$A$2:$A$33<>0,ROW('info Grid'!A$2:A$33)-ROW('info Grid'!A$2)+1),ROWS('info Grid'!A$2:A4))),\"\")","v":""},null,{"$f":"IFERROR(INDEX('info Grid'!B$2:B$33,SMALL(IF('info Grid'!$A$2:$A$33<>0,ROW('info Grid'!A$2:A$33)-ROW('info Grid'!A$2)+1),ROWS('info Grid'!A$2:A4))),\"\")","v":""},null,{"$f":"IFERROR(INDEX('info Grid'!$I$2:$I$33,SMALL(IF('info Grid'!$A$2:$A$33<>0,ROW('info Grid'!A$2:A$33)-ROW('info Grid'!A$2)+1),ROWS('info Grid'!A$2:A4))),\"\")","v":""},null,null,null,null,null,null,null,null,null,null,{"$f":"IFERROR(INDEX('info Grid'!F$2:F$33,SMALL(IF('info Grid'!$A$2:$A$33<>0,ROW('info Grid'!A$2:A$33)-ROW('info Grid'!A$2)+1),ROWS('info Grid'!A$2:A4))),\"\")","v":""},{"$f":"IFERROR(INDEX('info Grid'!G$2:G$33,SMALL(IF('info Grid'!$A$2:$A$33<>0,ROW('info Grid'!A$2:A$33)-ROW('info Grid'!A$2)+1),ROWS('info Grid'!A$2:A4))),\"\")","v":""}]
[null,"",null,"","","",null,"",null,"",null,null,null,null,null,null,null,null,null,null,"","",null,null,null,null,null,null,null,null,null,null,null,null,null,null,null,null,null,null,null,null,null,null,null,null,null,null,null,null,null,null,null,null,null,null,null,null,null,null,null,null,null,null,null,null,null,null,null,null,null,null,null,null,null,null,null,null,null,{"$f":"IFERROR(INDEX('info Grid'!E$2:E$33,SMALL(IF('info Grid'!$A$2:$A$33<>0,ROW('info Grid'!A$2:A$33)-ROW('info Grid'!A$2)+1),ROWS('info Grid'!A$2:A5))),\"\")","v":""},null,{"$f":"IFERROR(INDEX('info Grid'!C$2:C$33,SMALL(IF('info Grid'!$A$2:$A$33<>0,ROW('info Grid'!A$2:A$33)-ROW('info Grid'!A$2)+1),ROWS('info Grid'!A$2:A5))),\"\")","v":""},{"$f":"IFERROR(INDEX('info Grid'!D$2:D$33,SMALL(IF('info Grid'!$A$2:$A$33<>0,ROW('info Grid'!A$2:A$33)-ROW('info Grid'!A$2)+1),ROWS('info Grid'!A$2:A5))),\"\")","v":""},{"$f":"IFERROR(INDEX('info Grid'!A$2:A$33,SMALL(IF('info Grid'!$A$2:$A$33<>0,ROW('info Grid'!A$2:A$33)-ROW('info Grid'!A$2)+1),ROWS('info Grid'!A$2:A5))),\"\")","v":""},null,{"$f":"IFERROR(INDEX('info Grid'!B$2:B$33,SMALL(IF('info Grid'!$A$2:$A$33<>0,ROW('info Grid'!A$2:A$33)-ROW('info Grid'!A$2)+1),ROWS('info Grid'!A$2:A5))),\"\")","v":""},null,{"$f":"IFERROR(INDEX('info Grid'!$I$2:$I$33,SMALL(IF('info Grid'!$A$2:$A$33<>0,ROW('info Grid'!A$2:A$33)-ROW('info Grid'!A$2)+1),ROWS('info Grid'!A$2:A5))),\"\")","v":""},null,null,null,null,null,null,null,null,null,null,{"$f":"IFERROR(INDEX('info Grid'!F$2:F$33,SMALL(IF('info Grid'!$A$2:$A$33<>0,ROW('info Grid'!A$2:A$33)-ROW('info Grid'!A$2)+1),ROWS('info Grid'!A$2:A5))),\"\")","v":""},{"$f":"IFERROR(INDEX('info Grid'!G$2:G$33,SMALL(IF('info Grid'!$A$2:$A$33<>0,ROW('info Grid'!A$2:A$33)-ROW('info Grid'!A$2)+1),ROWS('info Grid'!A$2:A5))),\"\")","v":""}]
[null,"",null,"","","",null,"",null,"",null,null,null,null,null,null,null,null,null,null,"","",null,null,null,null,null,null,null,null,null,null,null,null,null,null,null,null,null,null,null,null,null,null,null,null,null,null,null,null,null,null,null,null,null,null,null,null,null,null,null,null,null,null,null,null,null,null,null,null,null,null,null,null,null,null,null,null,null,{"$f":"IFERROR(INDEX('info Grid'!E$2:E$33,SMALL(IF('info Grid'!$A$2:$A$33<>0,ROW('info Grid'!A$2:A$33)-ROW('info Grid'!A$2)+1),ROWS('info Grid'!A$2:A6))),\"\")","v":""},null,{"$f":"IFERROR(INDEX('info Grid'!C$2:C$33,SMALL(IF('info Grid'!$A$2:$A$33<>0,ROW('info Grid'!A$2:A$33)-ROW('info Grid'!A$2)+1),ROWS('info Grid'!A$2:A6))),\"\")","v":""},{"$f":"IFERROR(INDEX('info Grid'!D$2:D$33,SMALL(IF('info Grid'!$A$2:$A$33<>0,ROW('info Grid'!A$2:A$33)-ROW('info Grid'!A$2)+1),ROWS('info Grid'!A$2:A6))),\"\")","v":""},{"$f":"IFERROR(INDEX('info Grid'!A$2:A$33,SMALL(IF('info Grid'!$A$2:$A$33<>0,ROW('info Grid'!A$2:A$33)-ROW('info Grid'!A$2)+1),ROWS('info Grid'!A$2:A6))),\"\")","v":""},null,{"$f":"IFERROR(INDEX('info Grid'!B$2:B$33,SMALL(IF('info Grid'!$A$2:$A$33<>0,ROW('info Grid'!A$2:A$33)-ROW('info Grid'!A$2)+1),ROWS('info Grid'!A$2:A6))),\"\")","v":""},null,{"$f":"IFERROR(INDEX('info Grid'!$I$2:$I$33,SMALL(IF('info Grid'!$A$2:$A$33<>0,ROW('info Grid'!A$2:A$33)-ROW('info Grid'!A$2)+1),ROWS('info Grid'!A$2:A6))),\"\")","v":""},null,null,null,null,null,null,null,null,null,null,{"$f":"IFERROR(INDEX('info Grid'!F$2:F$33,SMALL(IF('info Grid'!$A$2:$A$33<>0,ROW('info Grid'!A$2:A$33)-ROW('info Grid'!A$2)+1),ROWS('info Grid'!A$2:A6))),\"\")","v":""},{"$f":"IFERROR(INDEX('info Grid'!G$2:G$33,SMALL(IF('info Grid'!$A$2:$A$33<>0,ROW('info Grid'!A$2:A$33)-ROW('info Grid'!A$2)+1),ROWS('info Grid'!A$2:A6))),\"\")","v":""}]
[null,null,null,null,null,null,null,null,null,null,null,null,null,null,null,null,null,null,null,null,"","",null,null,null,null,null,null,null,null,null,null,null,null,null,null,null,null,null,null,null,null,null,null,null,null,null,null,null,null,null,null,null,null,null,null,null,null,null,null,null,null,null,null,null,null,null,null,null,null,null,null,null,null,null,null,null,null,null,null,null,null,null,null,null,null,null,null,null,null,null,null,null,null,null,null,null,null,{"$f":"IFERROR(INDEX('info Grid'!F$2:F$33,SMALL(IF('info Grid'!$A$2:$A$33<>0,ROW('info Grid'!A$2:A$33)-ROW('info Grid'!A$2)+1),ROWS('info Grid'!A$2:A7))),\"\")","v":""},{"$f":"IFERROR(INDEX('info Grid'!G$2:G$33,SMALL(IF('info Grid'!$A$2:$A$33<>0,ROW('info Grid'!A$2:A$33)-ROW('info Grid'!A$2)+1),ROWS('info Grid'!A$2:A7))),\"\")","v":""}]

{"sheet":"Arch DCA Proposal","index":2,"n_rows":49,"n_cols":19,"rows_kept":49,"cut":false,"hidden":false,"merged":[[19,2,19,17],[19,0,19,1],[15,1,16,1],[15,2,15,17],[49,0,52,8]]}
["Architect firm",null,null,null,"Labor"]
["Project Name",null,null,null,"Multiplier"]
["Date revised"]
["DCA Proposal No."]
["Description"]
[]
["02-01-001100","A/E Services","Cost for Self Performed Basic Services",null,null,null,{"$f":"S47","v":0}]
["02-01-001200","A/E Reimbursable Svcs","Cost for Self Performed Reimbursable Services",null,null,null,{"$f":"Reimbursable!B26","v":0}]
[null,null,"Subtotal for Self Performed Work",null,null,null,{"$f":"SUM(G7:G8)","v":0}]
["02-01-001100","A/E Services","Cost for Consultant Basic Services",null,null,null,{"$f":"Consultants!D26","v":0}]
["02-01-001200","A/E Reimbursable Svcs","Cost for Consultant Reimbursable Services",null,null,null,{"$f":"Consultants!C26","v":0}]
[null,null,"Subtotal for Subcontracted Work",null,null,null,{"$f":"SUM(G10:G11)","v":0}]
[null,null,null,"Total Proposed Costs",null,null,{"$f":"G9+G12","v":0}]
[]
[]
[null,null,"Roles"]
[null,null,"Principal","Senior Vice President","Senior Project Manager","Senior Architect / Planner / Programmer","Senior Engineer","Senior Architectural Designer","Project Manager","Architect / Planner / Programmer","Engineer","Architectural Designer","Construction Administrator","Administrator","Intern","Additional role, requires justification*","Additional role, requires justification*","Additional role, requires justification*"]
[null,"Direct Salary Expense (DSE) - hourly rate"]
[null,"DSE with Multiplier",{"$f":"C18*$E$3","v":0},0,0,0,0,0,0,0,0,0,0,0,0,0,0,0]
["Elements of Work",null,"Hours",null,null,null,null,null,null,null,null,null,null,null,null,null,null,null,"Cost"]
["Architectural Design/Coordination",null,null,null,null,null,null,null,null,null,null,null,null,null,null,null,null,null,{"$f":"C21*C$19+D21*D$19+E21*E$19+F21*F$19+G21*G$19+H21*H$19+I21*I$19+J21*J19+K21*K$19+L21*L$19+M21*M$19+N21*N$19+O21*O$19+P21*P$19+Q21*Q$19+R21*R$19","v":0}]
["Civil Design/Construction",null,null,null,null,null,null,null,null,null,null,null,null,null,null,null,null,null,{"$f":"C22*C$19+D22*D$19+E22*E$19+F22*F$19+G22*G$19+H22*H$19+I22*I$19+J22*J20+K22*K$19+L22*L$19+M22*M$19+N22*N$19+O22*O$19+P22*P$19+Q22*Q$19+R22*R$19","v":0}]
["Structural Design/Construction",null,null,null,null,null,null,null,null,null,null,null,null,null,null,null,null,null,0]
["Electrical Design/Production",null,null,null,null,null,null,null,null,null,null,null,null,null,null,null,null,null,0]
["Mechanical Design/Production",null,null,null,null,null,null,null,null,null,null,null,null,null,null,null,null,null,0]
["Plumbing Design/Production",null,null,null,null,null,null,null,null,null,null,null,null,null,null,null,null,null,0]
["Data/Comms Design/Production",null,null,null,null,null,null,null,null,null,null,null,null,null,null,null,null,null,0]
["Drawing Review, QC/QA",null,null,null,null,null,null,null,null,null,null,null,null,null,null,null,null,null,0]
["Specifications Production",null,null,null,null,null,null,null,null,null,null,null,null,null,null,null,null,null,0]
[null,null,null,null,null,null,null,null,null,null,null,null,null,null,null,null,null,null,0]
["Project Managemnt",null,null,null,null,null,null,null,null,null,null,null,null,null,null,null,null,null,0]
["Meetings",null,null,null,null,null,null,null,null,null,null,null,null,null,null,null,null,null,0]
[null,null,null,null,null,null,null,null,null,null,null,null,null,null,null,null,null,null,0]
["Construction Administration",null,null,null,null,null,null,null,null,null,null,null,null,null,null,null,null,null,0]
["Field Observations",null,null,null,null,null,null,null,null,null,null,null,null,null,null,null,null,null,0]
["Submittal Administration/Review",null,null,null,null,null,null,null,null,null,null,null,null,null,null,null,null,null,0]
[null,null,null,null,null,null,null,null,null,null,null,null,null,null,null,null,null,null,0]
[null,null,null,null,null,null,null,null,null,null,null,null,null,null,null,null,null,null,0]
[null,null,null,null,null,null,null,null,null,null,null,null,null,null,null,null,null,null,0]
[null,null,null,null,null,null,null,null,null,null,null,null,null,null,null,null,null,null,0]
[null,null,null,null,null,null,null,null,null,null,null,null,null,null,null,null,null,null,0]
[null,null,null,null,null,null,null,null,null,null,null,null,null,null,null,null,null,null,0]
[null,null,null,null,null,null,null,null,null,null,null,null,null,null,null,null,null,null,0]
[null,null,null,null,null,null,null,null,null,null,null,null,null,null,null,null,null,null,0]
[null,null,null,null,null,null,null,null,null,null,null,null,null,null,null,null,null,null,0]
[null,null,null,null,null,null,null,null,null,null,null,null,null,null,null,null,null,null,0]
[null,null,{"$f":"SUM(C21:C46)","v":0},0,0,0,0,0,0,0,0,0,0,0,0,0,0,0,0]
[]
["* Justification for additional roles (if applicable):"]

{"sheet":"Reimbursable","index":3,"n_rows":26,"n_cols":2,"rows_kept":26,"cut":false,"hidden":false,"merged":[]}
["List all reimbursable scope items.  Each reimbursable scope item should be listed on a separate line."]
[]
["Scope Item","Reimbursable Cost"]
[]
[]
[]
[]
[]
[]
[]
[]
[]
[]
[]
[]
[]
[]
[]
[]
[]
[]
[]
[]
[]
[]
["SUBTOTAL",{"$f":"SUM(B4:B25)","v":0}]

{"sheet":"Consultants","index":4,"n_rows":26,"n_cols":4,"rows_kept":26,"cut":false,"hidden":false,"merged":[]}
["List all Consultant Costs.  Reimbursable items should be listed on separate lines for each reimbursable scope item"]
[]
["Consultant Name","Scope ","Reimbursable Cost","Basic Cost"]
[]
[]
[]
[]
[]
[]
[]
[]
[]
[]
[]
[]
[]
[]
[]
[]
[]
[]
[]
[]
[]
[]
[null,"SUBTOTAL",{"$f":"SUM(C4:C25)","v":0},{"$f":"SUM(D4:D25)","v":0}]

{"sheet":"Roll Up","index":5,"n_rows":41,"n_cols":3,"rows_kept":41,"cut":false,"hidden":true,"merged":[]}
["This Worksheet provides a summary of the CP costs by Cost Code in a format that can be uploaded or cut and pasted into PMWeb."]
[]
["Contractor Name",{"$f":"'Arch DCA Proposal'!B1","v":0}]
["OCO Number"]
["Total Value of Proposals",{"$f":"C41","v":0}]
["Total days claimed"]
[]
[null,null,"TOTAL Value"]
["03-01-","Contractor Fee and mark up"]
["03-01-","General Conditions"]
["03-01-014110","Insurance & Bonds"]
["03-01-","Contractor Provided Moving Expenses"]
["03-01-014123","Permits & Fees"]
["03-02-000000","Existing Conditions"]
["03-03-000000","Concrete"]
["03-04-000000","Masonry"]
["03-05-000000","Metals"]
["03-06-000000","Wood, Plastics, Composites"]
["03-07-000000","Thermal and Moisture Protection"]
["03-08-000000","Openings"]
["03-09-000000","Finishes"]
["03-10-000000","Specialties"]
["03-11-000000","Contractor Provided Equipment"]
["03-12-000000","Contractor Provided Fixtures and Furnishings"]
["03-13-000000","Specialty Construction"]
["03-14-000000","Conveying Equipment"]
["03-21-000000","Fire Suppression"]
["03-22-000000","Plumbing"]
["03-23-000000","HVAC"]
["03-25-000000","Integrated Automation"]
["03-26-000000","Electrical"]
["03-27-000000","Construction Contractor Provided Communications"]
["03-28-000000","Electronic Safety & Security"]
["03-31-000000","Earthwork"]
["03-32-000000","Exterior Improvements"]
["03-33-000000","Utilities"]
["03-34-000000","Transportation"]
["03-35-000000","Waterway and Marine Construction"]
["03-44-000000","Pollution and Waste Control Equipment"]
["03-46-000000","Water and Wastewater Equipment"]
[null,null,{"$f":"SUM(C9:C40)","v":0}]

{"sheet":"info Grid","index":6,"n_rows":4,"n_cols":9,"rows_kept":4,"cut":false,"hidden":false,"merged":[]}
["Amount","Cost Code","Description"]
[{"$f":"'Arch DCA Proposal'!G7+'Arch DCA Proposal'!G10","v":0},{"$f":"'Arch DCA Proposal'!A7","v":"02-01-001100"},{"$f":"'Arch DCA Proposal'!B7","v":"A/E Services"},"USD - Dollars (USA)",0,0,false,0,{"$f":"'Arch DCA Proposal'!H3","v":0}]
[{"$f":"'Arch DCA Proposal'!G8+'Arch DCA Proposal'!G11","v":0},{"$f":"'Arch DCA Proposal'!A8","v":"02-01-001200"},{"$f":"'Arch DCA Proposal'!B8","v":"A/E Reimbursable Svcs"},"USD - Dollars (USA)",0,0,false,0]
[{"$f":"-'Arch DCA Proposal'!G13","v":0},"99-99-999999","Project Contingency","USD - Dollars (USA)",0,0,false,0]